bitfinex/quotes_BTCUSD_20240908
["timestamp","ask_amount","ask_price","bid_price","bid_amount"]
[1725813834935,1.25829152,54087.0,54086.0,0.081128]
[1725813835399,1.25829152,54087.0,54086.0,0.143828]
[1725813835821,1.17522069,54087.0,54086.0,0.143828]
[1725813836469,0.93478127,54087.0,54086.0,0.143828]
[1725813836684,0.58358269,54087.0,54086.0,0.143828]
[1725813837095,0.48358269,54087.0,54086.0,0.143828]
[1725813838621,0.58358269,54087.0,54086.0,0.143828]
[1725813839464,0.143,54087.0,54086.0,0.143828]
[1725813839673,0.02,54087.0,54086.0,0.143828]
[1725813839883,0.02,54087.0,54086.0,0.145828]
[1725813840778,0.02,54087.0,54086.0,0.143828]
[1725813841031,0.143,54087.0,54086.0,0.143828]
[1725813842132,0.290909,54087.0,54086.0,0.143828]
[1725813842347,0.190909,54087.0,54086.0,0.143828]
[1725813842567,0.290909,54087.0,54086.0,0.143828]
[1725813843423,0.143,54087.0,54086.0,0.143828]
[1725813843839,0.043,54087.0,54086.0,0.143828]
[1725813844057,0.043,54087.0,54086.0,0.145828]
[1725813844890,0.034,54087.0,54086.0,0.145828]
[1725813845573,0.034,54087.0,54086.0,0.29374]
[1725813846031,0.023,54087.0,54086.0,0.145828]
[1725813846258,0.023,54088.0,54087.0,0.1442]
[1725813847121,0.023,54088.0,54087.0,0.1422]
[1725813847824,0.170907,54088.0,54087.0,0.1422]
[1725813848052,0.274907,54088.0,54087.0,0.1422]
[1725813848268,0.131,54088.0,54087.0,0.1422]
[1725813848741,0.131,54088.0,54087.0,0.1442]
[1725813849882,0.031,54088.0,54087.0,0.292109]
[1725813850114,0.031,54088.0,54087.0,0.98950538]
[1725813850362,0.031,54088.0,54087.0,0.69368638]
[1725813851025,0.031,54088.0,54087.0,0.98950538]
[1725813851241,0.031,54088.0,54087.0,0.69368638]
[1725813853111,0.031814,54088.0,54087.0,0.69368638]
[1725813854467,0.027814,54088.0,54087.0,0.69368638]
[1725813854890,0.027814,54088.0,54087.0,0.69468638]
[1725813855969,0.023814,54088.0,54087.0,0.69468638]
[1725813856188,0.000814,54088.0,54087.0,0.69568638]
[1725813856852,0.000814,54088.0,54087.0,0.1462]
[1725813857084,0.023814,54088.0,54087.0,0.1442]
[1725813857308,0.000814,54088.0,54087.0,0.1462]
[1725813857547,0.023814,54088.0,54087.0,0.1482]
[1725813857786,0.023814,54088.0,54087.0,0.1462]
[1725813858243,0.024814,54088.0,54087.0,0.1462]
[1725813858901,0.024814,54088.0,54087.0,0.1442]
[1725813859378,0.025814,54088.0,54087.0,0.1422]
[1725813859590,0.025814,54088.0,54087.0,0.1442]
[1725813859800,0.026814,54088.0,54087.0,0.1442]
[1725813860511,0.026814,54088.0,54087.0,0.1392]
[1725813861801,0.026814,54088.0,54087.0,0.1372]
[1725813862027,0.023814,54088.0,54087.0,0.1372]
[1725813862258,0.024814,54088.0,54087.0,0.1372]
[1725813862691,0.023814,54088.0,54087.0,0.1372]
[1725813862964,0.024814,54088.0,54087.0,0.1372]
[1725813863740,0.001814,54088.0,54087.0,0.1372]
[1725813864147,0.001814,54088.0,54087.0,0.1392]
[1725813864813,0.001814,54088.0,54087.0,0.140828]
[1725813865399,0.001814,54088.0,54087.0,0.584556]
[1725813865594,0.001814,54088.0,54087.0,0.288737]
[1725813866522,0.001814,54088.0,54087.0,0.138828]
[1725813868656,0.001814,54088.0,54087.0,0.286737]
[1725813869675,0.001814,54088.0,54087.0,0.288737]
[1725813869899,0.000814,54088.0,54087.0,0.288737]
[1725813870183,0.000814,54088.0,54087.0,0.290737]
[1725813870443,0.000814,54088.0,54087.0,0.288737]
[1725813870645,0.001814,54088.0,54087.0,0.295737]
[1725813870870,0.002814,54088.0,54087.0,0.297737]
[1725813871810,0.001814,54088.0,54087.0,0.142828]
[1725813872254,0.002814,54088.0,54087.0,0.150828]
[1725813872431,0.002814,54088.0,54087.0,0.298737]
[1725813872634,0.001814,54088.0,54087.0,0.290737]
[1725813873103,0.001814,54088.0,54087.0,0.295737]
[1725813873510,0.000814,54088.0,54087.0,0.288737]
[1725813873713,0.002814,54088.0,54087.0,0.298737]
[1725813874758,0.001814,54088.0,54087.0,0.296737]
[1725813874960,0.002814,54088.0,54087.0,0.298737]
[1725813875751,0.001814,54088.0,54087.0,0.290737]
[1725813876169,0.001814,54088.0,54087.0,0.297737]
[1725813876380,0.001814,54088.0,54087.0,0.295737]
[1725813876588,0.002814,54088.0,54087.0,0.297737]
[1725813876802,0.001814,54088.0,54087.0,0.290737]
[1725813877422,0.001814,54088.0,54087.0,0.296737]
[1725813877632,0.002814,54088.0,54087.0,0.298737]
[1725813878702,0.002814,54088.0,54087.0,0.140828]
[1725813878703,0.001814,54088.0,54087.0,0.140828]
[1725813878910,0.001814,54088.0,54087.0,0.288737]
[1725813879125,0.002814,54088.0,54087.0,0.295737]
[1725813879366,0.001814,54088.0,54087.0,0.293737]
[1725813879581,0.001814,54088.0,54087.0,0.582556]
[1725813879582,0.000814,54088.0,54087.0,0.582556]
[1725813879793,0.001814,54088.0,54087.0,0.68214608]
[1725813880011,0.002814,54088.0,54087.0,0.69214608]
[1725813880492,0.001814,54088.0,54087.0,0.68414608]
[1725813880709,0.001814,54088.0,54087.0,0.68914608]
[1725813880961,0.002814,54088.0,54087.0,0.69114608]
[1725813881211,0.002814,54088.0,54087.0,0.68914608]
[1725813881424,0.003814,54088.0,54087.0,0.98696508]
[1725813881635,0.003814,54088.0,54087.0,0.99696508]
[1725813882065,0.002814,54088.0,54087.0,0.98996508]
[1725813882292,0.003814,54088.0,54087.0,0.99796508]
[1725813882943,0.001814,54088.0,54087.0,0.99596508]
[1725813883198,0.002814,54088.0,54087.0,0.99796508]
[1725813883423,0.002814,54088.0,54087.0,0.99596508]
[1725813883843,0.003814,54088.0,54087.0,0.99796508]
[1725813884504,0.001814,54088.0,54087.0,0.99596508]
[1725813884926,0.001814,54088.0,54087.0,0.98996508]
[1725813885348,0.002814,54088.0,54087.0,0.99696508]
[1725813885687,0.002814,54088.0,54087.0,0.98696508]
[1725813885777,0.002814,54088.0,54087.0,0.586556]
[1725813885778,0.001814,54088.0,54087.0,0.586556]
[1725813886008,0.002814,54088.0,54087.0,0.593556]
[1725813886255,0.001814,54088.0,54087.0,0.591556]
[1725813886479,0.002814,54088.0,54087.0,0.593556]
[1725813887410,0.002814,54088.0,54087.0,0.70130588]
[1725813887621,0.002814,54088.0,54087.0,0.99712488]
[1725813890050,0.08326994,54096.0,54095.0,0.002]
[1725813890261,0.023,54096.0,54095.0,0.147]
[1725813890692,0.07851129,54096.0,54095.0,0.147]
[1725813892217,0.08051129,54096.0,54095.0,0.147]
[1725813892431,0.08051129,54096.0,54095.0,0.145]
[1725813892635,0.08051129,54096.0,54095.0,0.147]
[1725813893484,0.08050671,54096.0,54095.0,0.147]
[1725813893614,0.08350671,54096.0,54095.0,0.147]
[1725813893817,0.028,54096.0,54095.0,0.147]
[1725813894477,0.023,54096.0,54095.0,0.147]
[1725813894680,0.024,54096.0,54095.0,0.147]
[1725813895019,0.026,54096.0,54095.0,0.147]
[1725813895230,0.025,54096.0,54095.0,0.147]
[1725813895453,0.025,54096.0,54095.0,0.148]
[1725813896113,0.07850671,54096.0,54095.0,0.148]
[1725813896532,0.07850671,54096.0,54095.0,0.149]
[1725813896966,0.023,54096.0,54095.0,0.149]
[1725813897189,0.023,54096.0,54095.0,0.148]
[1725813897399,0.023,54096.0,54095.0,0.147]
[1725813897603,0.023,54096.0,54095.0,0.153]
[1725813898223,0.023,54096.0,54095.0,0.300887]
[1725813898648,0.1,54096.0,54095.0,0.300887]
[1725813898860,0.023,54096.0,54095.0,0.300887]
[1725813899138,0.170885,54096.0,54095.0,0.006]
[1725813899366,0.17932071,54096.0,54092.0,0.0657]
[1725813899603,0.170888,54095.0,54092.0,0.0657]
[1725813899825,0.023,54095.0,54092.0,0.213594]
[1725813900051,0.05550671,54094.0,54092.0,0.213594]
[1725813901461,0.05649557,54094.0,54093.0,0.002]
[1725813901691,0.05649557,54094.0,54092.0,0.0677]
[1725813901916,0.05549533,54093.0,54092.0,0.0677]
[1725813902162,0.07849533,54093.0,54092.0,0.0677]
[1725813902383,0.22638833,54093.0,54092.0,0.0677]
[1725813903070,0.07849533,54093.0,54092.0,0.0677]
[1725813903301,0.07949533,54093.0,54092.0,0.0677]
[1725813903740,0.171893,54093.0,54092.0,0.0677]
[1725813903956,0.07949745,54093.0,54092.0,0.0677]
[1725813904189,0.023,54093.0,54092.0,0.0677]
[1725813904427,0.024,54093.0,54092.0,0.0677]
[1725813905763,0.023,54093.0,54092.0,0.0677]
[1725813905977,0.07949777,54093.0,54092.0,0.0677]
[1725813906868,0.07849777,54093.0,54092.0,0.0677]
[1725813907082,0.07849777,54093.0,54092.0,0.0707]
[1725813907083,0.023,54093.0,54092.0,0.0707]
[1725813907294,0.07849777,54093.0,54092.0,0.0707]
[1725813907533,0.023,54093.0,54092.0,0.0707]
[1725813907741,0.07849777,54093.0,54092.0,0.0707]
[1725813908416,0.22639077,54093.0,54092.0,0.003]
[1725813908653,0.023,54093.0,54092.0,0.003]
[1725813908863,0.07850186,54093.0,54092.0,0.006]
[1725813909080,0.52218086,54093.0,54092.0,0.006]
[1725813909504,0.170893,54093.0,54092.0,0.003]
[1725813909723,0.170893,54093.0,54092.0,0.005]
[1725813909924,0.170893,54093.0,54092.0,0.003]
[1725813910141,0.25413965,54093.0,54092.0,0.003]
[1725813910371,0.54992565,54093.0,54092.0,0.003]
[1725813910608,0.147896,54092.0,54091.0,0.0766]
[1725813910823,0.22640188,54092.0,54091.0,0.0766]
[1725813912166,0.22640188,54092.0,54087.0,0.293836]
[1725813912409,0.07850588,54091.0,54088.0,0.147906]
[1725813912647,0.07850588,54091.0,54087.0,0.145928]
[1725813912648,0.147901,54090.0,54087.0,0.145928]
[1725813913084,0.023,54091.0,54087.0,0.078228]
[1725813913085,0.739535,54088.0,54087.0,0.078228]
[1725813913310,0.20341288,54088.0,54087.0,0.078228]
[1725813913521,0.54997823,54088.0,54087.0,0.078228]
[1725813913983,0.54997823,54088.0,54087.0,0.081228]
[1725813914236,0.25416423,54088.0,54087.0,0.081228]
[1725813914462,0.54997823,54088.0,54087.0,0.078228]
[1725813914688,0.54997823,54088.0,54087.0,0.005628]
[1725813915159,0.54997823,54088.0,54087.0,0.001628]
[1725813915416,0.54997823,54088.0,54087.0,0.004628]
[1725813915638,0.54997823,54088.0,54087.0,0.007628]
[1725813916080,0.54997823,54088.0,54087.0,0.004628]
[1725813916293,0.54997823,54088.0,54087.0,0.007628]
[1725813916573,0.25416423,54088.0,54087.0,0.007628]
[1725813916823,0.5222256,54088.0,54087.0,0.146528]
[1725813917073,0.466721,54088.0,54087.0,0.148528]
[1725813917307,0.52222482,54088.0,54087.0,0.148528]
[1725813917989,0.52222482,54088.0,54087.0,0.151528]
[1725813918202,0.466721,54088.0,54087.0,0.151528]
[1725813918422,0.466721,54088.0,54087.0,0.148528]
[1725813918653,0.466721,54088.0,54087.0,0.145528]
[1725813918881,0.466721,54088.0,54087.0,0.085428]
[1725813919117,0.466721,54088.0,54087.0,0.088428]
[1725813919349,0.466721,54088.0,54087.0,0.003628]
[1725813919561,0.52222101,54088.0,54087.0,0.005628]
[1725813919781,0.54997673,54088.0,54087.0,0.005628]
[1725813920014,0.54997673,54088.0,54087.0,0.001628]
[1725813920227,0.54997673,54088.0,54087.0,0.002628]
[1725813920674,0.54997673,54088.0,54087.0,0.001628]
[1725813920882,0.54997673,54088.0,54087.0,0.002628]
[1725813922280,0.54997673,54088.0,54087.0,0.001628]
[1725813922494,0.55097673,54088.0,54087.0,0.001628]
[1725813922735,0.54997673,54088.0,54087.0,0.001628]
[1725813923002,0.84579073,54088.0,54087.0,0.001628]
[1725813923233,1.16060473,54088.0,54087.0,0.002628]
[1725813923474,1.169349,54088.0,54087.0,0.002628]
[1725813923689,1.169349,54088.0,54087.0,0.001628]
[1725813923690,1.166349,54088.0,54087.0,0.001628]
[1725813923898,1.173349,54088.0,54087.0,0.002628]
[1725813925762,1.31201562,54088.0,54087.0,0.002628]
[1725813925994,1.173349,54088.0,54087.0,0.002628]
[1725813926625,1.31199639,54088.0,54087.0,0.002628]
[1725813928462,0.138,54088.0,54087.0,0.144528]
[1725813928677,0.138,54088.0,54087.0,0.146528]
[1725813928678,0.31834822,54088.0,54087.0,0.146528]
[1725813928903,0.115,54088.0,54087.0,0.146528]
[1725813929115,0.015,54088.0,54087.0,0.146528]
[1725813930307,0.038,54088.0,54087.0,0.294437]
[1725813931036,0.015,54088.0,54087.0,0.600256]
[1725813931285,0.015,54088.0,54087.0,0.99482181]
[1725813931527,0.008,54088.0,54087.0,0.99382181]
[1725813932006,0.000814,54095.0,54094.0,0.002]
[1725813932227,0.000814,54095.0,54094.0,0.30179]
[1725813932459,0.4708,54106.0,54105.0,0.14986]
[1725813932688,0.4708,54106.0,54105.0,0.29166]
[1725813932916,0.4708,54106.0,54105.0,0.30166]
[1725813933618,0.5708,54106.0,54105.0,0.30166]
[1725813934293,0.5768,54106.0,54105.0,0.30266]
[1725813934502,0.5768,54106.0,54105.0,0.29266]
[1725813934738,0.724657,54106.0,54105.0,0.1418]
[1725813934969,0.718657,54106.0,54105.0,0.1418]
[1725813935174,0.5718,54106.0,54105.0,0.1418]
[1725813935384,0.5948,54106.0,54105.0,0.1418]
[1725813935608,0.6018,54106.0,54105.0,0.1438]
[1725813936276,0.5948,54106.0,54105.0,0.1438]
[1725813936496,0.5968,54106.0,54105.0,0.1438]
[1725813936704,0.5998,54106.0,54105.0,0.1438]
[1725813936909,0.5968,54106.0,54105.0,0.1438]
[1725813937127,0.5968,54106.0,54105.0,0.29166]
[1725813937333,0.5948,54106.0,54105.0,0.29166]
[1725813937544,0.5938,54106.0,54105.0,0.29166]
[1725813937760,0.123,54106.0,54105.0,0.1438]
[1725813937990,0.023,54106.0,54105.0,0.1438]
[1725813938212,0.1,54106.0,54105.0,0.29166]
[1725813938434,0.126,54106.0,54105.0,0.29166]
[1725813938880,0.126,54106.0,54105.0,0.1438]
[1725813939102,0.129,54106.0,54105.0,0.1438]
[1725813939331,0.026,54106.0,54105.0,0.1438]
[1725813939556,0.027,54106.0,54105.0,0.1438]
[1725813939781,0.024,54106.0,54105.0,0.1438]
[1725813940230,0.027,54106.0,54105.0,0.1438]
[1725813940441,0.026,54106.0,54105.0,0.1438]
[1725813940862,0.029,54106.0,54105.0,0.1438]
[1725813941543,0.032,54106.0,54105.0,0.1438]
[1725813942467,0.032,54106.0,54105.0,0.29166]
[1725813942693,0.009,54106.0,54105.0,0.597381]
[1725813943153,0.009,54106.0,54105.0,0.38566749]
[1725813943384,0.179857,54106.0,54105.0,0.1418]
[1725813943618,0.023,54106.0,54105.0,0.1418]
[1725813943891,0.02381,54107.0,54105.0,0.1438]
[1725813944118,0.02381,54107.0,54105.0,0.1458]
[1725813944349,0.02381,54107.0,54106.0,0.1438]
[1725813944557,0.00081,54107.0,54106.0,0.1438]
[1725813946197,0.00381,54107.0,54106.0,0.1438]
[1725813946426,0.02981,54107.0,54106.0,0.1438]
[1725813948054,0.02981,54107.0,54106.0,0.291657]
[1725813948273,0.02981,54107.0,54106.0,0.301657]
[1725813948274,0.00381,54107.0,54106.0,0.301657]
[1725813948725,0.00581,54107.0,54106.0,0.597372]
[1725813949408,0.00281,54107.0,54106.0,0.597372]
[1725813949837,0.00081,54107.0,54106.0,0.599372]
[1725813950550,0.00081,54107.0,54106.0,0.601372]
[1725813951725,0.00081,54107.0,54106.0,0.897087]
[1725813951952,0.00081,54107.0,54106.0,0.895087]
[1725813952185,0.00081,54107.0,54106.0,0.893087]
[1725813952409,0.00081,54107.0,54106.0,0.99350264]
[1725813952678,0.00081,54107.0,54106.0,0.600372]
[1725813952886,0.00081,54107.0,54106.0,0.301657]
[1725813953352,0.00081,54107.0,54106.0,0.307657]
[1725813953558,0.00081,54107.0,54106.0,0.896087]
[1725813953994,0.00081,54107.0,54106.0,0.603372]
[1725813955318,0.00081,54107.0,54106.0,0.899087]
[1725813955522,0.00081,54107.0,54106.0,0.603372]
[1725813958166,0.00081,54107.0,54106.0,0.899087]
[1725813958396,0.00081,54107.0,54106.0,0.603372]
[1725813960140,0.00081,54107.0,54106.0,0.1478]
[1725813960356,0.444375,54107.0,54106.0,0.1478]
[1725813960801,0.467375,54107.0,54106.0,0.1478]
[1725813961695,0.467375,54107.0,54106.0,0.0837]
[1725813961911,0.467375,54107.0,54106.0,0.0807]
[1725813961912,0.468375,54107.0,54106.0,0.0807]
[1725813962119,0.147857,54106.0,54105.0,0.001628]
[1725813962346,0.00181,54107.0,54106.0,0.453572]
[1725813962555,0.00581,54107.0,54106.0,0.69368385]
[1725813962781,0.00081,54107.0,54106.0,0.98939885]
[1725813963048,0.00081,54107.0,54106.0,0.99039885]
[1725813963270,0.00181,54107.0,54106.0,0.99039885]
[1725813963503,0.00081,54107.0,54106.0,0.98939885]
[1725813963726,0.00081,54107.0,54106.0,0.99239885]
[1725813965440,0.00181,54107.0,54106.0,0.99939885]
[1725813965870,0.00081,54107.0,54106.0,0.98939885]
[1725813966309,0.00281,54107.0,54106.0,1.00339885]
[1725813966549,0.00181,54107.0,54106.0,0.99939885]
[1725813966794,0.00281,54107.0,54106.0,1.00339885]
[1725813967024,0.00281,54107.0,54106.0,0.99339885]
[1725813967025,0.00181,54107.0,54106.0,0.99339885]
[1725813968364,0.00281,54107.0,54106.0,1.00239885]
[1725813968571,0.00181,54107.0,54106.0,0.99839885]
[1725813969004,0.00181,54107.0,54106.0,0.99339885]
[1725813969227,0.00081,54107.0,54106.0,0.98939885]
[1725813969674,0.00281,54107.0,54106.0,1.00339885]
[1725813969884,0.00181,54107.0,54106.0,0.99939885]
[1725813970125,0.00081,54107.0,54106.0,0.98939885]
[1725813971075,0.00081,54107.0,54106.0,0.68368385]
[1725813971308,0.00081,54107.0,54106.0,0.69768385]
[1725813971309,0.00181,54107.0,54106.0,0.69768385]
[1725813971541,0.00181,54107.0,54106.0,0.70268385]
[1725813971764,0.00281,54107.0,54106.0,0.70668385]
[1725813972427,0.00281,54107.0,54106.0,1.00239885]
[1725813972664,0.00081,54107.0,54106.0,0.98939885]
[1725813972881,0.00281,54107.0,54106.0,1.00339885]
[1725813973346,0.00181,54107.0,54106.0,0.99339885]
[1725813974486,0.00081,54107.0,54106.0,0.98939885]
[1725813974689,0.00181,54107.0,54106.0,0.99339885]
[1725813974927,0.00181,54107.0,54106.0,0.99839885]
[1725813975358,0.00281,54107.0,54106.0,1.00239885]
[1725813975575,0.00181,54107.0,54106.0,0.99339885]
[1725813975808,0.00281,54107.0,54106.0,1.29511385]
[1725813976026,0.00281,54107.0,54106.0,0.99939885]
[1725813976259,0.00281,54107.0,54106.0,1.29511385]
[1725813978297,0.00281,54107.0,54106.0,0.99939885]
[1725813981170,0.00281,54107.0,54106.0,1.29511385]
[1725813981399,0.00281,54107.0,54106.0,0.99939885]
[1725813981620,0.00281,54107.0,54106.0,1.29511385]
[1725813992822,0.26210258,54119.0,54118.0,0.149825]
[1725813993035,0.023,54119.0,54118.0,0.149825]
[1725813993449,0.05546368,54122.0,54120.0,0.002]
[1725813993450,0.023,54121.0,54120.0,0.002]
[1725813994180,0.023,54122.0,54120.0,0.002]
[1725813994419,0.170814,54122.0,54120.0,0.002]
[1725813994878,0.009,54121.0,54120.0,0.003]
[1725813995107,0.009,54121.0,54120.0,0.752097]
[1725813995108,0.109,54121.0,54120.0,0.752097]
[1725813995349,0.1,54124.0,54122.0,0.147813]
[1725813995817,0.02660128,54125.0,54123.0,0.147811]
[1725813996050,0.023,54124.0,54123.0,0.147811]
[1725813996333,0.023,54124.0,54120.0,0.0746]
[1725813996560,0.123,54124.0,54123.0,0.002]
[1725813997490,0.136,54124.0,54123.0,0.002]
[1725813997734,0.136,54124.0,54123.0,0.149811]
[1725813997735,0.123,54124.0,54123.0,0.149811]
[1725813997951,0.136,54124.0,54123.0,0.003]
[1725813998164,0.149,54124.0,54123.0,0.004]
[1725814000701,0.296808,54124.0,54123.0,0.004]
[1725814000928,0.149,54124.0,54123.0,0.004]
[1725814001360,0.296808,54124.0,54123.0,0.004]
[1725814002226,0.888042,54124.0,54123.0,0.002]
[1725814002677,0.97123512,54124.0,54123.0,0.002]
[1725814003143,0.3522303,54124.0,54123.0,0.014]
[1725814003350,0.35222777,54124.0,54123.0,0.014]
[1725814004295,0.35222803,54124.0,54123.0,0.014]
[1725814004964,0.18223403,54124.0,54123.0,0.1552]
[1725814005188,0.126814,54124.0,54123.0,0.303011]
[1725814005433,0.126814,54124.0,54123.0,0.1552]
[1725814005627,0.026814,54124.0,54123.0,0.1552]
[1725814006964,0.026814,54124.0,54123.0,0.25511102]
[1725814007407,0.026814,54124.0,54123.0,0.25311102]
[1725814007408,0.174622,54124.0,54123.0,0.25311102]
[1725814007628,0.274622,54124.0,54123.0,0.25311102]
[1725814007873,0.126814,54124.0,54123.0,0.25311102]
[1725814008097,0.274622,54124.0,54123.0,0.25311102]
[1725814008563,0.126814,54124.0,54123.0,0.25311102]
[1725814008802,0.026814,54124.0,54123.0,0.25311102]
[1725814009220,0.026814,54124.0,54123.0,0.1532]
[1725814009434,0.174622,54124.0,54123.0,0.1532]
[1725814009666,0.274622,54124.0,54123.0,0.1552]
[1725814009896,0.27439961,54124.0,54123.0,0.1552]
[1725814010814,0.02659161,54124.0,54123.0,0.25411402]
[1725814011727,0.17439961,54124.0,54123.0,0.25411402]
[1725814013010,0.02659161,54124.0,54123.0,0.25411402]
[1725814015958,0.02659161,54124.0,54123.0,0.40561989]
[1725814016192,0.02659161,54124.0,54123.0,1.24754702]
[1725814016409,0.02659161,54124.0,54123.0,2.02354341]
[1725814016640,0.02659161,54124.0,54123.0,2.31916541]
[1725814016863,0.02659161,54124.0,54123.0,2.02354341]
[1725814017107,0.00013,54125.0,54124.0,1.046659]
[1725814017346,0.00013,54125.0,54124.0,1.46317464]
[1725814019431,0.00113,54125.0,54124.0,1.47417464]
[1725814019619,0.00113,54125.0,54124.0,1.28942225]
[1725814019846,0.00213,54125.0,54124.0,1.30142225]
[1725814022391,0.00213,54125.0,54124.0,0.71018825]
[1725814022619,0.00213,54125.0,54124.0,1.05580525]
[1725814023073,0.00113,54125.0,54124.0,0.69918825]
[1725814023308,0.00113,54125.0,54124.0,0.68718825]
[1725814023309,0.00013,54125.0,54124.0,0.68718825]
[1725814023534,0.00013,54125.0,54124.0,0.98780525]
[1725814023760,0.00013,54125.0,54124.0,1.03780525]
[1725814023988,0.00013,54125.0,54124.0,1.04280525]
[1725814025392,0.00013,54125.0,54124.0,1.33342225]
[1725814025622,0.00013,54125.0,54124.0,1.33642225]
[1725814026053,0.00013,54125.0,54124.0,1.33342225]
[1725814026422,0.00013,54125.0,54124.0,1.34042225]
[1725814026423,0.00113,54125.0,54124.0,1.34042225]
[1725814026626,0.00113,54125.0,54124.0,1.33542225]
[1725814026828,0.00013,54125.0,54124.0,1.32842225]
[1725814027140,0.00013,54125.0,54124.0,1.33342225]
[1725814027284,0.00013,54125.0,54124.0,1.32942225]
[1725814027492,0.00013,54125.0,54124.0,1.03580525]
[1725814027875,0.00013,54125.0,54124.0,1.03380525]
[1725814028119,0.00013,54125.0,54124.0,0.24276325]
[1725814028347,0.00013,54125.0,54124.0,0.0905]
[1725814028553,0.00013,54125.0,54124.0,0.013]
[1725814028554,0.147936,54125.0,54124.0,0.013]
[1725814028786,0.00013,54125.0,54124.0,0.015]
[1725814028984,0.147936,54125.0,54124.0,0.015]
[1725814029191,0.00013,54125.0,54124.0,0.013]
[1725814029614,0.147936,54125.0,54124.0,0.014]
[1725814029837,0.147936,54125.0,54124.0,0.011]
[1725814030068,0.591354,54125.0,54124.0,0.001]
[1725814030288,0.591354,54125.0,54124.0,0.002]
[1725814030289,0.73916,54125.0,54124.0,0.002]
[1725814030490,0.76216,54125.0,54124.0,0.002]
[1725814031955,1.058472,54125.0,54124.0,0.002]
[1725814032164,1.058472,54125.0,54124.0,0.001]
[1725814032631,1.465084,54125.0,54124.0,0.002]
[1725814032853,1.52040987,54125.0,54124.0,0.002]
[1725814033055,1.52040987,54125.0,54119.0,0.001628]
[1725814033056,0.739097,54120.0,54119.0,0.001628]
[1725814033293,1.158436,54120.0,54119.0,0.001628]
[1725814033753,1.462875,54120.0,54119.0,0.001628]
[1725814033993,1.64149689,54120.0,54119.0,0.001628]
[1725814034193,1.65424906,54120.0,54119.0,0.001628]
[1725814034469,1.85954353,54120.0,54119.0,0.001628]
[1725814034700,2.03652115,54120.0,54119.0,0.002628]
[1725814034924,1.055685,54107.0,54101.0,0.55430836]
[1725814035134,1.155685,54107.0,54101.0,0.55430836]
[1725814035353,1.155685,54107.0,54094.0,0.001628]
[1725814035354,1.5343565,54107.0,54094.0,0.001628]
[1725814035555,1.474395,54107.0,54094.0,0.001628]
[1725814035980,1.483195,54107.0,54094.0,0.001628]
[1725814036406,1.65935085,54107.0,54106.0,0.002628]
[1725814036613,1.6077369,54107.0,54106.0,0.002628]
[1725814036830,1.6077369,54107.0,54106.0,0.001628]
[1725814036831,1.5937369,54107.0,54106.0,0.001628]
[1725814037049,1.59373931,54107.0,54106.0,0.001628]
[1725814037275,0.95104176,54107.0,54106.0,0.002628]
[1725814037505,0.92651675,54107.0,54106.0,0.002628]
[1725814037754,0.92251675,54107.0,54106.0,0.002628]
[1725814038000,0.91251675,54107.0,54106.0,0.002628]
[1725814038211,1.23222675,54107.0,54106.0,0.002628]
[1725814038440,1.21822675,54107.0,54106.0,0.001628]
[1725814038677,0.92251675,54107.0,54106.0,0.001628]
[1725814038892,0.91771675,54107.0,54106.0,0.002628]
[1725814039124,0.890275,54107.0,54106.0,0.002628]
[1725814039339,0.839275,54107.0,54106.0,0.001628]
[1725814039652,0.853275,54107.0,54106.0,0.002628]
[1725814039811,0.867275,54107.0,54106.0,0.002628]
[1725814040030,0.853275,54107.0,54106.0,0.084228]
[1725814040253,0.853275,54107.0,54106.0,0.083228]
[1725814040454,0.853275,54107.0,54106.0,0.084228]
[1725814040952,0.888275,54107.0,54106.0,0.084228]
[1725814041367,0.592565,54107.0,54106.0,0.084228]
[1725814041607,0.592565,54107.0,54106.0,0.086228]
[1725814041832,0.282855,54107.0,54106.0,0.151128]
[1725814042048,0.296855,54107.0,54106.0,0.152128]
[1725814042304,0.592565,54107.0,54106.0,0.152128]
[1725814042525,0.282855,54107.0,54106.0,0.151128]
[1725814042744,0.566565,54107.0,54106.0,0.151128]
[1725814042996,0.587565,54107.0,54106.0,0.152128]
[1725814043194,0.258855,54107.0,54106.0,0.160128]
[1725814043436,0.147855,54107.0,54106.0,0.159128]
[1725814043642,0.460565,54107.0,54106.0,0.160128]
[1725814043865,0.475565,54107.0,54106.0,0.002628]
[1725814044077,0.771275,54107.0,54106.0,0.002628]
[1725814044306,0.777275,54107.0,54106.0,0.002628]
[1725814044546,1.173685,54107.0,54106.0,0.002628]
[1725814044763,0.877275,54107.0,54106.0,0.002628]
[1725814045436,0.868275,54107.0,54106.0,0.001628]
[1725814045651,1.163985,54107.0,54106.0,0.002628]
[1725814045892,1.174985,54107.0,54106.0,0.002628]
[1725814046159,1.168985,54107.0,54106.0,0.002628]
[1725814046400,1.164985,54107.0,54106.0,0.001628]
[1725814046610,1.173985,54107.0,54106.0,0.002628]
[1725814046817,1.182785,54107.0,54106.0,0.002628]
[1725814047006,1.173785,54107.0,54106.0,0.001628]
[1725814047244,1.157985,54107.0,54106.0,0.001628]
[1725814047452,1.168985,54107.0,54106.0,0.002628]
[1725814048083,0.87022743,54107.0,54106.0,0.002628]
[1725814048711,0.85922743,54107.0,54106.0,0.001628]
[1725814048911,0.86822743,54107.0,54106.0,0.002628]
[1725814049543,0.85122743,54107.0,54106.0,0.001628]
[1725814049751,1.15793743,54107.0,54106.0,0.002628]
[1725814049999,1.16593743,54107.0,54106.0,0.002628]
[1725814050205,1.16593743,54107.0,54106.0,0.001628]